[Event "Early-Titled-Tuesday-Blitz-October-17-2023"]
[Site "Chess.com"]
[Date "2023.10.17"]
[Round "7"]
[White "Mesa_1"]
[Black "secretsuperstar7"]
[Result "1-0"]
[WhiteElo "2592"]
[BlackElo "2461"]
[TimeControl "180+1"]
[EndTime "9:19:06 PDT"]
[Termination "Mesa_1 won by checkmate"]

1. e4 {[%clk 0:03:00.9]} 1... c5 {[%clk 0:02:56.3]} 2. Nf3 {[%clk 0:03:00.4]}
2... Nc6 {[%clk 0:02:55.4]} 3. Bb5 {[%clk 0:02:58.4]} 3... g6 {[%clk 0:02:54.8]}
4. O-O {[%clk 0:02:59.1]} 4... Bg7 {[%clk 0:02:55.1]} 5. Re1 {[%clk 0:02:59.8]}
5... Nf6 {[%clk 0:02:53.6]} 6. c3 {[%clk 0:03:00.3]} 6... O-O {[%clk 0:02:53]}
7. d4 {[%clk 0:03:00.8]} 7... cxd4 {[%clk 0:02:53.2]} 8. cxd4 {[%clk 0:03:01.7]}
8... d5 {[%clk 0:02:53.3]} 9. e5 {[%clk 0:03:02.4]} 9... Ne4 {[%clk 0:02:52.9]}
10. Nc3 {[%clk 0:03:03.1]} 10... Bg4 {[%clk 0:02:46.6]} 11. Bxc6 {[%clk
0:02:54.9]} 11... Nxc3 {[%clk 0:02:38]} 12. bxc3 {[%clk 0:02:51.5]} 12... bxc6
{[%clk 0:02:38.2]} 13. h3 {[%clk 0:02:51.9]} 13... Bxf3 {[%clk 0:02:33.8]} 14.
Qxf3 {[%clk 0:02:52.8]} 14... Qa5 {[%clk 0:02:32.4]} 15. Bg5 {[%clk 0:02:48.4]}
15... Rfe8 {[%clk 0:02:25.8]} 16. h4 {[%clk 0:02:46.4]} 16... Rab8 {[%clk
0:02:15.5]} 17. h5 {[%clk 0:02:45.5]} 17... Rb2 {[%clk 0:02:13.1]} 18. hxg6
{[%clk 0:02:35.2]} 18... hxg6 {[%clk 0:02:11.4]} 19. Qh3 {[%clk 0:01:50.3]}
19... e6 {[%clk 0:01:51.9]} 20. Qh4 {[%clk 0:01:41.6]} 20... Qxc3 {[%clk
0:01:46.6]} 21. Re3 {[%clk 0:01:40.8]} 21... Qb4 {[%clk 0:01:37.7]} 22. Rh3
{[%clk 0:01:37.6]} 22... Rb1+ {[%clk 0:01:31.5]} 23. Rxb1 {[%clk 0:01:36.9]}
23... Qxb1+ {[%clk 0:01:32.4]} 24. Kh2 {[%clk 0:01:36.9]} 24... Qf5 {[%clk
0:01:16.3]} 25. g4 {[%clk 0:01:14.2]} 25... Qe4 {[%clk 0:01:06.9]} 26. Qh7+
{[%clk 0:01:05]} 26... Kf8 {[%clk 0:01:05.3]} 27. Qxg7+ {[%clk 0:01:02.6]} 27...
Kxg7 {[%clk 0:00:58.5]} 28. Bf6+ {[%clk 0:01:03.5]} 28... Kf8 {[%clk 0:00:57.9]}
29. Rh8# {[%clk 0:01:04.1]} 1-0

[Event "Early-Titled-Tuesday-Blitz-October-17-2023"]
[Site "Chess.com"]
[Date "2023.10.17"]
[Round "7"]
[White "HouseOfDurin"]
[Black "Tagliata"]
[Result "0-1"]
[WhiteElo "2271"]
[BlackElo "2137"]
[TimeControl "180+1"]
[EndTime "9:19:06 PDT"]
[Termination "Tagliata won on time"]

1. d4 {[%clk 0:02:52.2]} 1... Nf6 {[%clk 0:02:59.3]} 2. Bg5 {[%clk 0:02:52.2]}
2... Ne4 {[%clk 0:02:58.2]} 3. Bf4 {[%clk 0:02:51.5]} 3... c5 {[%clk 0:02:58.7]}
4. d5 {[%clk 0:02:49.7]} 4... Qb6 {[%clk 0:02:54.2]} 5. b3 {[%clk 0:02:42.3]}
5... Qf6 {[%clk 0:02:51.8]} 6. Bxb8 {[%clk 0:02:32.9]} 6... Rxb8 {[%clk
0:02:43]} 7. f3 {[%clk 0:02:25.2]} 7... Qh4+ {[%clk 0:02:36.9]} 8. g3 {[%clk
0:02:22.7]} 8... Nxg3 {[%clk 0:02:34.7]} 9. hxg3 {[%clk 0:02:22.9]} 9... Qxh1
{[%clk 0:02:34.1]} 10. Kf2 {[%clk 0:02:23.1]} 10... g6 {[%clk 0:02:30.5]} 11. c3
{[%clk 0:02:13.5]} 11... h5 {[%clk 0:02:29.9]} 12. Bg2 {[%clk 0:02:06.8]} 12...
Qh2 {[%clk 0:02:29.9]} 13. Nd2 {[%clk 0:02:02]} 13... h4 {[%clk 0:02:29.5]} 14.
Nf1 {[%clk 0:01:43.4]} 14... hxg3+ {[%clk 0:02:25.1]} 15. Nxg3 {[%clk
0:01:44.3]} 15... Bh6 {[%clk 0:02:19.9]} 16. Nf1 {[%clk 0:01:11.5]} 16... Qh4+
{[%clk 0:02:18.7]} 17. Ng3 {[%clk 0:01:05.1]} 17... Bf4 {[%clk 0:02:17.6]} 18.
e3 {[%clk 0:01:01]} 18... Qxg3+ {[%clk 0:02:15.8]} 19. Kf1 {[%clk 0:01:01.3]}
19... Rh2 {[%clk 0:02:14.2]} 20. Qe2 {[%clk 0:00:59.7]} 20... Bxe3 {[%clk
0:02:14.5]} 21. Re1 {[%clk 0:00:54.8]} 21... e6 {[%clk 0:02:10.8]} 22. d6 {[%clk
0:00:51.9]} 22... b6 {[%clk 0:02:06.2]} 23. f4 {[%clk 0:00:36.9]} 23... Bxg1
{[%clk 0:01:44.8]} 24. Kxg1 {[%clk 0:00:36.9]} 24... Bb7 {[%clk 0:01:45.3]} 0-1

[Event "Early-Titled-Tuesday-Blitz-October-17-2023"]
[Site "Chess.com"]
[Date "2023.10.17"]
[Round "7"]
[White "vladislavkovalev"]
[Black "SchmakAttack"]
[Result "1-0"]
[WhiteElo "2874"]
[BlackElo "2733"]
[TimeControl "180+1"]
[EndTime "9:19:09 PDT"]
[Termination "vladislavkovalev won on time"]

1. e4 {[%clk 0:03:00.9]} 1... e5 {[%clk 0:02:58.9]} 2. Nf3 {[%clk 0:03:01.5]}
2... Nc6 {[%clk 0:02:59]} 3. Bb5 {[%clk 0:03:02.2]} 3... a6 {[%clk 0:02:59]} 4.
Ba4 {[%clk 0:03:02.9]} 4... Nf6 {[%clk 0:02:56.7]} 5. O-O {[%clk 0:03:03.4]}
5... d6 {[%clk 0:02:53.4]} 6. Bxc6+ {[%clk 0:03:02.5]} 6... bxc6 {[%clk
0:02:53.6]} 7. d4 {[%clk 0:03:03.3]} 7... exd4 {[%clk 0:02:40.4]} 8. Nxd4 {[%clk
0:03:03.9]} 8... c5 {[%clk 0:02:36]} 9. Nf3 {[%clk 0:03:04.1]} 9... Bb7 {[%clk
0:02:14.4]} 10. Re1 {[%clk 0:03:03.9]} 10... Be7 {[%clk 0:02:14]} 11. e5 {[%clk
0:03:04.3]} 11... dxe5 {[%clk 0:02:12.8]} 12. Nxe5 {[%clk 0:02:56.8]} 12... O-O
{[%clk 0:02:10.7]} 13. Qxd8 {[%clk 0:02:48.5]} 13... Raxd8 {[%clk 0:02:09.2]}
14. Nc3 {[%clk 0:02:49.2]} 14... Rfe8 {[%clk 0:02:05.4]} 15. Nc4 {[%clk
0:02:39]} 15... Nd5 {[%clk 0:01:57.6]} 16. Bd2 {[%clk 0:02:10.9]} 16... Nb6
{[%clk 0:01:47.5]} 17. Nxb6 {[%clk 0:01:27.3]} 1-0

[Event "Early-Titled-Tuesday-Blitz-October-17-2023"]
[Site "Chess.com"]
[Date "2023.10.17"]
[Round "7"]
[White "Hovik_Hayrapetyan"]
[Black "brm72"]
[Result "1-0"]
[WhiteElo "2798"]
[BlackElo "2539"]
[TimeControl "180+1"]
[EndTime "9:19:10 PDT"]
[Termination "Hovik_Hayrapetyan won by resignation"]

1. d4 {[%clk 0:02:59.7]} 1... Nf6 {[%clk 0:02:58.3]} 2. c4 {[%clk 0:02:59.9]}
2... e6 {[%clk 0:02:58.1]} 3. Nc3 {[%clk 0:03:00.3]} 3... Bb4 {[%clk 0:02:58.2]}
4. Nf3 {[%clk 0:03:00.9]} 4... O-O {[%clk 0:02:56.5]} 5. Bg5 {[%clk 0:03:00.7]}
5... c5 {[%clk 0:02:54.8]} 6. Rc1 {[%clk 0:03:00]} 6... cxd4 {[%clk 0:02:51.2]}
7. Nxd4 {[%clk 0:03:00.9]} 7... Nc6 {[%clk 0:02:46.3]} 8. e3 {[%clk 0:02:56.1]}
8... h6 {[%clk 0:02:43.5]} 9. Bh4 {[%clk 0:02:54.3]} 9... g5 {[%clk 0:02:39.9]}
10. Bg3 {[%clk 0:02:54.3]} 10... Ne4 {[%clk 0:02:38]} 11. Bd3 {[%clk 0:02:50.2]}
11... Nxc3 {[%clk 0:02:35.4]} 12. bxc3 {[%clk 0:02:49.6]} 12... Ba3 {[%clk
0:02:35.7]} 13. Rb1 {[%clk 0:02:32.7]} 13... f5 {[%clk 0:02:31.6]} 14. Qh5
{[%clk 0:02:12.5]} 14... Qf6 {[%clk 0:02:27.7]} 15. h4 {[%clk 0:02:09.7]} 15...
g4 {[%clk 0:02:25.1]} 16. Bf4 {[%clk 0:01:56.5]} 16... Kg7 {[%clk 0:02:21.7]}
17. f3 {[%clk 0:01:51.9]} 17... d6 {[%clk 0:01:52]} 18. fxg4 {[%clk 0:01:19.5]}
18... e5 {[%clk 0:01:40.2]} 19. Nxf5+ {[%clk 0:01:19.1]} 19... Bxf5 {[%clk
0:01:36.7]} 20. Rxb7+ {[%clk 0:01:18.8]} 20... Kg8 {[%clk 0:01:31.9]} 21. Bg5
{[%clk 0:00:43]} 21... Qg6 {[%clk 0:01:23]} 22. Qxg6+ {[%clk 0:00:43]} 22...
Bxg6 {[%clk 0:01:23]} 23. Bxg6 {[%clk 0:00:43]} 23... hxg5 {[%clk 0:01:19.5]}
24. Bh7+ {[%clk 0:00:42.7]} 24... Kh8 {[%clk 0:01:18.4]} 25. hxg5 {[%clk
0:00:43.6]} 25... Rab8 {[%clk 0:01:13.4]} 26. Be4+ {[%clk 0:00:41.9]} 26... Kg8
{[%clk 0:01:13.2]} 27. Bd5+ {[%clk 0:00:42.8]} 1-0

[Event "Early-Titled-Tuesday-Blitz-October-17-2023"]
[Site "Chess.com"]
[Date "2023.10.17"]
[Round "7"]
[White "ploxoi"]
[Black "mfwagnerpeixoto"]
[Result "1-0"]
[WhiteElo "2466"]
[BlackElo "2318"]
[TimeControl "180+1"]
[EndTime "9:19:17 PDT"]
[Termination "ploxoi won by resignation"]

1. d4 {[%clk 0:03:00.9]} 1... Nf6 {[%clk 0:02:54.5]} 2. c4 {[%clk 0:03:00.7]}
2... c5 {[%clk 0:02:54]} 3. d5 {[%clk 0:03:00.8]} 3... e5 {[%clk 0:02:50.5]} 4.
Nc3 {[%clk 0:03:01]} 4... d6 {[%clk 0:02:50.6]} 5. e4 {[%clk 0:03:01.3]} 5...
Be7 {[%clk 0:02:50.4]} 6. g3 {[%clk 0:03:00.5]} 6... Nbd7 {[%clk 0:02:50.4]} 7.
Bg2 {[%clk 0:03:01]} 7... Nf8 {[%clk 0:02:50.6]} 8. Nf3 {[%clk 0:03:01.4]} 8...
a6 {[%clk 0:02:47.5]} 9. a4 {[%clk 0:03:00.7]} 9... h5 {[%clk 0:02:44.1]} 10. h3
{[%clk 0:02:58.6]} 10... Ng6 {[%clk 0:02:43.4]} 11. Bg5 {[%clk 0:02:58.5]} 11...
Rb8 {[%clk 0:02:28.1]} 12. Qd2 {[%clk 0:02:53.9]} 12... h4 {[%clk 0:02:23.6]}
13. Nxh4 {[%clk 0:02:46.6]} 13... Nxh4 {[%clk 0:02:17.8]} 14. Bxh4 {[%clk
0:02:47.5]} 14... Rxh4 {[%clk 0:02:13.2]} 15. gxh4 {[%clk 0:02:48.4]} 15... Nh5
{[%clk 0:02:13.7]} 16. Ne2 {[%clk 0:02:46.4]} 16... Bxh4 {[%clk 0:02:10.7]} 17.
Bf3 {[%clk 0:02:46.8]} 17... Nf4 {[%clk 0:01:44.8]} 18. Nxf4 {[%clk 0:02:40.2]}
18... exf4 {[%clk 0:01:45.7]} 19. Qxf4 {[%clk 0:02:26.7]} 19... Bf6 {[%clk
0:01:39.2]} 20. Bh5 {[%clk 0:02:15.4]} 20... Qb6 {[%clk 0:01:26.4]} 21. O-O
{[%clk 0:02:00.1]} 21... Bxh3 {[%clk 0:01:17.8]} 22. Rfe1 {[%clk 0:02:00.1]}
22... Kf8 {[%clk 0:00:55.8]} 23. e5 {[%clk 0:01:46.6]} 23... dxe5 {[%clk
0:00:52.9]} 24. Rxe5 {[%clk 0:01:47.5]} 24... g6 {[%clk 0:00:41.5]} 25. Re6
{[%clk 0:01:40.8]} 25... fxe6 {[%clk 0:00:35.8]} 26. Qxf6+ {[%clk 0:01:38.6]}
26... Kg8 {[%clk 0:00:32.4]} 27. Qxg6+ {[%clk 0:01:38.9]} 27... Kh8 {[%clk
0:00:32.7]} 28. Qf6+ {[%clk 0:01:35.5]} 28... Kg8 {[%clk 0:00:26.4]} 29. Bf7+
{[%clk 0:01:35.5]} 1-0

[Event "Early-Titled-Tuesday-Blitz-October-17-2023"]
[Site "Chess.com"]
[Date "2023.10.17"]
[Round "7"]
[White "Tobias_Koelle"]
[Black "Yeremyan_ChessMate"]
[Result "1-0"]
[WhiteElo "2954"]
[BlackElo "2737"]
[TimeControl "180+1"]
[EndTime "9:19:33 PDT"]
[Termination "Tobias_Koelle won by resignation"]

1. d4 {[%clk 0:03:00.9]} 1... Nf6 {[%clk 0:02:59.4]} 2. Nc3 {[%clk 0:03:01.8]}
2... g6 {[%clk 0:03:00.1]} 3. e4 {[%clk 0:03:01.1]} 3... d6 {[%clk 0:03:00]} 4.
f4 {[%clk 0:02:49.8]} 4... Bg7 {[%clk 0:02:59.5]} 5. Bd3 {[%clk 0:02:44.6]} 5...
O-O {[%clk 0:02:59.9]} 6. Nf3 {[%clk 0:02:43]} 6... e5 {[%clk 0:03:00.5]} 7.
fxe5 {[%clk 0:02:33.5]} 7... dxe5 {[%clk 0:03:00.5]} 8. d5 {[%clk 0:02:34.4]}
8... c6 {[%clk 0:02:59]} 9. dxc6 {[%clk 0:02:34.7]} 9... Nxc6 {[%clk 0:02:58.7]}
10. O-O {[%clk 0:02:35.6]} 10... h6 {[%clk 0:02:58.4]} 11. h3 {[%clk 0:02:34.3]}
11... Be6 {[%clk 0:02:56.7]} 12. Be3 {[%clk 0:02:33.2]} 12... Nh5 {[%clk
0:02:57.4]} 13. Qd2 {[%clk 0:02:24.5]} 13... Qe7 {[%clk 0:02:56.1]} 14. Nd5
{[%clk 0:02:22.8]} 14... Bxd5 {[%clk 0:02:48.2]} 15. exd5 {[%clk 0:02:23.7]}
15... e4 {[%clk 0:02:32]} 16. dxc6 {[%clk 0:02:21.7]} 16... exf3 {[%clk
0:02:31.6]} 17. Rxf3 {[%clk 0:02:19.1]} 17... bxc6 {[%clk 0:02:31]} 18. Bxh6
{[%clk 0:02:19.8]} 18... Qc5+ {[%clk 0:02:17.4]} 19. Kh1 {[%clk 0:02:16.1]}
19... Bxb2 {[%clk 0:02:16.2]} 20. Raf1 {[%clk 0:02:13.6]} 20... Bg7 {[%clk
0:01:56.6]} 21. Bxg7 {[%clk 0:02:09.7]} 21... Nxg7 {[%clk 0:01:56]} 22. Rf6
{[%clk 0:01:58.7]} 22... Rad8 {[%clk 0:01:51.6]} 23. Qh6 {[%clk 0:01:44.8]}
23... Qh5 {[%clk 0:01:43.3]} 24. Qf4 {[%clk 0:01:39]} 24... Qc5 {[%clk
0:01:36.1]} 25. Qf3 {[%clk 0:01:34.4]} 25... Qe7 {[%clk 0:01:21]} 26. Bc4 {[%clk
0:01:26.3]} 26... Kh8 {[%clk 0:00:32.7]} 27. Bxf7 {[%clk 0:01:22]} 27... Nf5
{[%clk 0:00:11.8]} 28. Rxf5 {[%clk 0:01:21.4]} 28... gxf5 {[%clk 0:00:11.7]} 29.
Qh5+ {[%clk 0:01:20.9]} 1-0

[Event "Early-Titled-Tuesday-Blitz-October-17-2023"]
[Site "Chess.com"]
[Date "2023.10.17"]
[Round "7"]
[White "diamonds13"]
[Black "Flaccidmoves"]
[Result "0-1"]
[WhiteElo "2285"]
[BlackElo "2419"]
[TimeControl "180+1"]
[EndTime "9:19:34 PDT"]
[Termination "Flaccidmoves won by resignation"]

1. d4 {[%clk 0:02:55.5]} 1... Nf6 {[%clk 0:02:59.4]} 2. c4 {[%clk 0:02:55.7]}
2... g6 {[%clk 0:02:59.7]} 3. Nc3 {[%clk 0:02:55.4]} 3... d5 {[%clk 0:03:00.3]}
4. Nf3 {[%clk 0:02:54.9]} 4... Bg7 {[%clk 0:03:00.2]} 5. h4 {[%clk 0:02:53.9]}
5... dxc4 {[%clk 0:02:58.2]} 6. e4 {[%clk 0:02:51.8]} 6... b5 {[%clk 0:02:48.3]}
7. e5 {[%clk 0:02:47.9]} 7... Nd5 {[%clk 0:02:47.9]} 8. Nxb5 {[%clk 0:02:46.2]}
8... c6 {[%clk 0:02:25.7]} 9. Nc3 {[%clk 0:02:44.3]} 9... Nb6 {[%clk 0:02:12.9]}
10. a4 {[%clk 0:02:42.7]} 10... a5 {[%clk 0:02:12.3]} 11. h5 {[%clk 0:02:37.9]}
11... Bg4 {[%clk 0:02:10]} 12. h6 {[%clk 0:02:36.6]} 12... Bf8 {[%clk
0:02:08.7]} 13. Rh4 {[%clk 0:02:36.1]} 13... Bxf3 {[%clk 0:02:03.1]} 14. Qxf3
{[%clk 0:02:34.4]} 14... e6 {[%clk 0:01:57.5]} 15. g3 {[%clk 0:02:12.6]} 15...
Na6 {[%clk 0:01:49.6]} 16. Ne4 {[%clk 0:02:11]} 16... Be7 {[%clk 0:01:41.5]} 17.
Bg5 {[%clk 0:01:53.9]} 17... Bxg5 {[%clk 0:01:30.5]} 18. Nd6+ {[%clk 0:01:53]}
18... Kd7 {[%clk 0:01:23.5]} 19. Qxf7+ {[%clk 0:01:49.1]} 19... Qe7 {[%clk
0:01:20.7]} 20. Qf3 {[%clk 0:01:38.4]} 20... Bxh4 {[%clk 0:01:16.6]} 21. gxh4
{[%clk 0:01:38]} 21... Rhf8 {[%clk 0:01:15.5]} 22. Qe4 {[%clk 0:01:37.4]} 22...
Nb4 {[%clk 0:01:07.7]} 23. Rc1 {[%clk 0:01:20.2]} 23... Nc8 {[%clk 0:00:53.1]}
24. Nxc4 {[%clk 0:01:16.1]} 24... Nd5 {[%clk 0:00:49.8]} 25. Ne3 {[%clk
0:01:10.9]} 25... Qb4+ {[%clk 0:00:45.7]} 26. Kd1 {[%clk 0:01:03]} 26... Rxf2
{[%clk 0:00:41.8]} 27. Qd3 {[%clk 0:00:52.3]} 27... Nxe3+ {[%clk 0:00:38.8]} 0-1

[Event "Early-Titled-Tuesday-Blitz-October-17-2023"]
[Site "Chess.com"]
[Date "2023.10.17"]
[Round "7"]
[White "Nekoo04"]
[Black "DarZay"]
[Result "1-0"]
[WhiteElo "2254"]
[BlackElo "2215"]
[TimeControl "180+1"]
[EndTime "9:19:35 PDT"]
[Termination "Nekoo04 won by resignation"]

1. d4 {[%clk 0:02:12.2]} 1... d5 {[%clk 0:02:58.3]} 2. c3 {[%clk 0:02:12.4]}
2... Nf6 {[%clk 0:02:55.5]} 3. Bf4 {[%clk 0:02:12.7]} 3... c6 {[%clk 0:02:55]}
4. e3 {[%clk 0:02:10.7]} 4... Bf5 {[%clk 0:02:55.1]} 5. Nf3 {[%clk 0:02:10]}
5... e6 {[%clk 0:02:51.2]} 6. Nbd2 {[%clk 0:01:49.5]} 6... Bd6 {[%clk
0:02:49.5]} 7. Ne5 {[%clk 0:01:47]} 7... h6 {[%clk 0:02:45.5]} 8. Be2 {[%clk
0:01:17.4]} 8... Ne4 {[%clk 0:02:45.1]} 9. Bh5 {[%clk 0:00:50.4]} 9... g6 {[%clk
0:02:32.2]} 10. g4 {[%clk 0:00:37.9]} 10... gxh5 {[%clk 0:02:31.7]} 11. gxf5
{[%clk 0:00:37.5]} 11... Qh4 {[%clk 0:02:28.9]} 12. Nxe4 {[%clk 0:00:34.1]}
12... dxe4 {[%clk 0:02:26.4]} 13. fxe6 {[%clk 0:00:34.1]} 13... fxe6 {[%clk
0:02:26]} 14. Ng6 {[%clk 0:00:27.5]} 14... Qh3 {[%clk 0:02:24.7]} 15. Bxd6
{[%clk 0:00:11.6]} 15... Rg8 {[%clk 0:02:23.9]} 16. Nf4 {[%clk 0:00:10.7]} 16...
Qf5 {[%clk 0:02:21.9]} 17. Bxb8 {[%clk 0:00:10.7]} 17... Rxb8 {[%clk 0:02:22]}
18. Qxh5+ {[%clk 0:00:11.4]} 18... Kd7 {[%clk 0:02:12.7]} 19. Qxf5 {[%clk
0:00:09.9]} 19... exf5 {[%clk 0:02:12.9]} 20. Ke2 {[%clk 0:00:10.8]} 20... Rbf8
{[%clk 0:02:10.5]} 21. Rhg1 {[%clk 0:00:11.1]} 21... b5 {[%clk 0:02:09.3]} 22.
Rxg8 {[%clk 0:00:10.5]} 22... Rxg8 {[%clk 0:02:09]} 23. h4 {[%clk 0:00:10.7]}
23... Rg4 {[%clk 0:02:08.4]} 24. Rh1 {[%clk 0:00:10.7]} 24... a5 {[%clk
0:02:05.1]} 25. f3 {[%clk 0:00:11.2]} 25... exf3+ {[%clk 0:02:03.6]} 26. Kxf3
{[%clk 0:00:12.1]} 26... Rg7 {[%clk 0:02:03.4]} 27. Kf2 {[%clk 0:00:11.7]} 27...
Kd6 {[%clk 0:02:03]} 28. Rg1 {[%clk 0:00:12]} 28... Rxg1 {[%clk 0:01:57.1]} 29.
Kxg1 {[%clk 0:00:12.9]} 29... c5 {[%clk 0:01:57.5]} 30. Kf2 {[%clk 0:00:12.1]}
30... cxd4 {[%clk 0:01:57.1]} 31. exd4 {[%clk 0:00:11.8]} 31... Kc6 {[%clk
0:01:55.7]} 32. Kf3 {[%clk 0:00:11.9]} 32... Kd6 {[%clk 0:01:52.6]} 33. h5
{[%clk 0:00:12.3]} 33... Kc6 {[%clk 0:01:52.2]} 34. Ke3 {[%clk 0:00:12.5]} 34...
b4 {[%clk 0:01:52.2]} 35. c4 {[%clk 0:00:12.5]} 35... Kd6 {[%clk 0:01:52.7]} 36.
Kd3 {[%clk 0:00:12.6]} 36... a4 {[%clk 0:01:52.4]} 37. d5 {[%clk 0:00:12.2]}
37... Ke5 {[%clk 0:01:52]} 38. Ng6+ {[%clk 0:00:10.3]} 38... Kf6 {[%clk
0:01:51.4]} 39. Kd4 {[%clk 0:00:10.1]} 39... Kg5 {[%clk 0:01:51.4]} 40. d6
{[%clk 0:00:10.5]} 40... Kf6 {[%clk 0:01:50.9]} 41. d7 {[%clk 0:00:10.5]} 1-0

[Event "Early-Titled-Tuesday-Blitz-October-17-2023"]
[Site "Chess.com"]
[Date "2023.10.17"]
[Round "7"]
[White "lefonghua"]
[Black "whitemirrorninja"]
[Result "0-1"]
[WhiteElo "2646"]
[BlackElo "2534"]
[TimeControl "180+1"]
[EndTime "9:19:46 PDT"]
[Termination "whitemirrorninja won by resignation"]

1. d4 {[%clk 0:03:00.9]} 1... e6 {[%clk 0:02:59.5]} 2. c4 {[%clk 0:03:01.1]}
2... b6 {[%clk 0:02:59.5]} 3. e4 {[%clk 0:03:00.5]} 3... Bb7 {[%clk 0:02:59.7]}
4. f3 {[%clk 0:02:58.5]} 4... g6 {[%clk 0:02:59.3]} 5. Nc3 {[%clk 0:02:58.1]}
5... Bg7 {[%clk 0:02:59.5]} 6. Be3 {[%clk 0:02:58.8]} 6... d6 {[%clk 0:02:59.1]}
7. Bd3 {[%clk 0:02:57.6]} 7... Nd7 {[%clk 0:02:59.4]} 8. Nge2 {[%clk 0:02:58.1]}
8... Ne7 {[%clk 0:02:56.5]} 9. O-O {[%clk 0:02:57.8]} 9... O-O {[%clk
0:02:56.4]} 10. Qd2 {[%clk 0:02:58.4]} 10... e5 {[%clk 0:02:55.4]} 11. d5 {[%clk
0:02:57.5]} 11... f5 {[%clk 0:02:55.8]} 12. b4 {[%clk 0:02:56.4]} 12... f4
{[%clk 0:02:55.3]} 13. Bf2 {[%clk 0:02:56.6]} 13... g5 {[%clk 0:02:53.6]} 14. h3
{[%clk 0:02:56.7]} 14... h5 {[%clk 0:02:50.9]} 15. Rfc1 {[%clk 0:02:56.8]} 15...
g4 {[%clk 0:02:49.8]} 16. hxg4 {[%clk 0:02:47.4]} 16... hxg4 {[%clk 0:02:50.7]}
17. Kf1 {[%clk 0:02:47.9]} 17... Ng6 {[%clk 0:02:42.6]} 18. c5 {[%clk
0:02:45.9]} 18... bxc5 {[%clk 0:02:33.4]} 19. bxc5 {[%clk 0:02:45.2]} 19... Nxc5
{[%clk 0:02:34.1]} 20. Bxc5 {[%clk 0:02:41.7]} 20... dxc5 {[%clk 0:02:35]} 21.
Na4 {[%clk 0:02:38.7]} 21... Qh4 {[%clk 0:02:27.9]} 22. Ng1 {[%clk 0:02:35.7]}
22... gxf3 {[%clk 0:02:14.8]} 23. gxf3 {[%clk 0:02:35.2]} 23... Bc8 {[%clk
0:02:06.7]} 24. Nxc5 {[%clk 0:02:33.8]} 24... Rf6 {[%clk 0:01:43.7]} 25. Bb5
{[%clk 0:02:14.9]} 25... Qg3 {[%clk 0:01:19.1]} 26. Bd7 {[%clk 0:01:59]} 26...
Nh4 {[%clk 0:01:12.3]} 27. Qf2 {[%clk 0:01:50.8]} 27... Rg6 {[%clk 0:00:54.4]}
28. Be6+ {[%clk 0:01:41]} 28... Kh8 {[%clk 0:00:49.6]} 29. Bxc8 {[%clk
0:01:36.4]} 29... Qxf2+ {[%clk 0:00:37.2]} 30. Kxf2 {[%clk 0:01:35.8]} 30...
Rg2+ {[%clk 0:00:37.9]} 31. Kf1 {[%clk 0:01:36.3]} 31... Rxc8 {[%clk 0:00:38.1]}
32. Ne6 {[%clk 0:01:31.1]} 32... Bf6 {[%clk 0:00:34.8]} 33. d6 {[%clk
0:01:23.7]} 33... Rcg8 {[%clk 0:00:35]} 34. Ne2 {[%clk 0:01:15.1]} 34... Nxf3
{[%clk 0:00:29.3]} 35. dxc7 {[%clk 0:01:12]} 35... Bh4 {[%clk 0:00:29.9]} 0-1

[Event "Early-Titled-Tuesday-Blitz-October-17-2023"]
[Site "Chess.com"]
[Date "2023.10.17"]
[Round "7"]
[White "Makswolf200817"]
[Black "surrenderPLS"]
[Result "1-0"]
[WhiteElo "2687"]
[BlackElo "2506"]
[TimeControl "180+1"]
[EndTime "9:19:46 PDT"]
[Termination "Makswolf200817 won by resignation"]

1. d4 {[%clk 0:03:00]} 1... Nf6 {[%clk 0:02:59.5]} 2. c4 {[%clk 0:03:00.7]} 2...
e6 {[%clk 0:02:59.6]} 3. g3 {[%clk 0:03:01.2]} 3... d5 {[%clk 0:02:58.6]} 4. Bg2
{[%clk 0:03:01.7]} 4... dxc4 {[%clk 0:02:47.6]} 5. Nf3 {[%clk 0:03:01.4]} 5...
c6 {[%clk 0:02:47.8]} 6. O-O {[%clk 0:02:51.6]} 6... b5 {[%clk 0:02:43.4]} 7.
Ne5 {[%clk 0:02:51.9]} 7... Bb7 {[%clk 0:02:42.7]} 8. a4 {[%clk 0:02:52.6]} 8...
a6 {[%clk 0:02:42.7]} 9. b3 {[%clk 0:02:52.5]} 9... cxb3 {[%clk 0:02:42.2]} 10.
Qxb3 {[%clk 0:02:53.2]} 10... Bd6 {[%clk 0:02:35.1]} 11. Rd1 {[%clk 0:02:44.3]}
11... O-O {[%clk 0:02:34.8]} 12. Bb2 {[%clk 0:02:40.7]} 12... Nd5 {[%clk
0:02:31.8]} 13. Nd2 {[%clk 0:02:35.2]} 13... f6 {[%clk 0:02:28.4]} 14. Nd3
{[%clk 0:02:34.6]} 14... Nd7 {[%clk 0:02:07.3]} 15. Ne4 {[%clk 0:02:23.4]} 15...
N7b6 {[%clk 0:02:02.5]} 16. Nxd6 {[%clk 0:02:16.7]} 16... Qxd6 {[%clk
0:02:03.4]} 17. e4 {[%clk 0:02:16.7]} 17... bxa4 {[%clk 0:01:38.9]} 18. Qa2
{[%clk 0:02:09.5]} 18... Ne7 {[%clk 0:01:08.8]} 19. Ba3 {[%clk 0:02:07.9]} 19...
Qd8 {[%clk 0:01:08.6]} 20. Qxe6+ {[%clk 0:01:55.2]} 20... Rf7 {[%clk 0:01:08.3]}
21. Rab1 {[%clk 0:01:55.9]} 21... Qc8 {[%clk 0:00:32.5]} 22. Qd6 {[%clk
0:01:36.7]} 22... Nc4 {[%clk 0:00:30]} 23. Qc5 {[%clk 0:01:30.5]} 23... Nxa3
{[%clk 0:00:30.1]} 24. Qxa3 {[%clk 0:01:31.4]} 24... Rb8 {[%clk 0:00:21.5]} 25.
Nc5 {[%clk 0:01:31.3]} 25... Ba8 {[%clk 0:00:20.6]} 26. Bf1 {[%clk 0:01:31.6]}
26... Rb5 {[%clk 0:00:18.9]} 27. Bc4 {[%clk 0:01:29.8]} 27... Kf8 {[%clk
0:00:16.1]} 28. Nxa4 {[%clk 0:01:23.6]} 28... c5 {[%clk 0:00:12.6]} 29. Bxb5
{[%clk 0:01:20.4]} 29... axb5 {[%clk 0:00:12.4]} 30. Nb6 {[%clk 0:01:20.9]} 1-0